fUSD/lending_fUSD_20260612
["ID","MTS","AMOUNT","RATE_DAILY","PERIOD"]
[424919928,1781272245000,-405.76701402,0.00025,2]
[424919952,1781272245000,-539.0,0.00026,2]
[424919983,1781272245000,-300.0,0.00027397,2]
[424919981,1781272245000,-429.5941176,0.00027397,2]
[424919980,1781272245000,-748.84,0.00027397,2]
[424919984,1781272245000,-6121.41,0.00027397,10]
[424919978,1781272245000,-505.0,0.000273,10]
[424919982,1781272245000,-7345.69,0.00027397,10]
[424919985,1781272245000,-180.15,0.000274,7]
[424919988,1781272245000,-3129.98,0.000274,2]
[424919987,1781272245000,-3129.98,0.000274,2]
[424919990,1781272245000,-3129.98,0.000274,2]
[424919979,1781272245000,-1500.0,0.00027397,2]
[424919989,1781272245000,-3129.98,0.000274,2]
[424919992,1781272245000,-157.46490993,0.00027495,7]
[424919993,1781272245000,-156.0503048,0.00027495,7]
[424919995,1781272245000,-150.50634776,0.00027495,7]
[424919998,1781272245000,-155.12728615,0.00027495,2]
[424919997,1781272245000,-156.02176592,0.00027495,7]
[424919996,1781272245000,-167.09075139,0.00027495,7]
[424919999,1781272245000,-151.50854219,0.00027495,7]
[424920001,1781272245000,-172.56556869,0.00027495,7]
[424920002,1781272245000,-500.0,0.000275,7]
[424919957,1781272245000,-5273.0,0.0002641,5]
[424919991,1781272245000,-837.99,0.00027488,7]
[424919986,1781272245000,-3129.98,0.000274,2]
[424919994,1781272245000,-187.792468,0.00027495,7]
[424919977,1781272245000,-231.939314,0.00026992,7]
[424919962,1781272245000,-2000.0,0.00026921,2]
[424919975,1781272245000,-5000.0,0.00026926,2]
[424919954,1781272245000,-505.0,0.00026267,9]
[424919956,1781272245000,-896.0,0.00026393,10]
[424919955,1781272245000,-1215.0,0.00026296,2]
[424919959,1781272245000,-150.0,0.00026641,2]
[424919961,1781272245000,-2000.0,0.00026921,2]
[424919960,1781272245000,-2000.0,0.00026921,2]
[424919964,1781272245000,-2000.0,0.00026921,2]
[424919974,1781272245000,-5000.0,0.00026926,2]
[424919963,1781272245000,-2000.0,0.00026921,2]
[424919958,1781272245000,-1000.0,0.000266,2]
[424919965,1781272245000,-2000.0,0.00026921,2]
[424919968,1781272245000,-2000.0,0.00026921,2]
[424919966,1781272245000,-2000.0,0.00026921,2]
[424919971,1781272245000,-5000.0,0.00026926,2]
[424919970,1781272245000,-4330.0,0.00026922,10]
[424919967,1781272245000,-2000.0,0.00026921,2]
[424920003,1781272245000,-150.88701494,0.00027501,7]
[424919972,1781272245000,-5000.0,0.00026926,2]
[424919973,1781272245000,-5000.0,0.00026926,2]
[424919969,1781272245000,-2000.0,0.00026921,2]
[424919976,1781272245000,-5716.68729537,0.00026926,2]
[424920027,1781272246000,-154.21464799,0.00027501,7]
[424920023,1781272246000,-153.73273642,0.00027501,7]
[424920026,1781272246000,-157.31669765,0.00027501,7]
[424920025,1781272246000,-206.41594157,0.00027501,7]
[424920022,1781272246000,-154.15789036,0.00027501,7]
[424920024,1781272246000,-160.40629102,0.00027501,7]
[424920030,1781272246000,-431.64839135,0.00027545,2]
[424920031,1781272246000,-1459.57,0.0002755,30]
[424920032,1781272246000,-534.65,0.0002755,30]
[424920029,1781272246000,-150.25342718,0.00027505,7]
[424920020,1781272246000,-202.33174959,0.00027501,7]
[424920034,1781272246000,-2017.73,0.0002755,30]
[424920028,1781272246000,-178.11734989,0.00027505,7]
[424920021,1781272246000,-202.90926725,0.00027501,7]
[424920011,1781272246000,-195.19386416,0.00027501,7]
[424920017,1781272246000,-184.34219698,0.00027501,7]
[424920037,1781272246000,-300.11,0.0002755,2]
[424920005,1781272246000,-175.69337055,0.00027501,7]
[424920004,1781272246000,-177.13136408,0.00027501,7]
[424920007,1781272246000,-176.9028436,0.00027501,7]
[424920009,1781272246000,-174.81268067,0.00027501,7]
[424920010,1781272246000,-159.12901977,0.00027501,5]
[424920019,1781272246000,-156.17684689,0.00027501,7]
[424920006,1781272246000,-242.22193872,0.00027501,7]
[424920008,1781272246000,-284.76878651,0.00027501,7]
[424920014,1781272246000,-158.43930137,0.00027501,7]
[424920013,1781272246000,-207.17155792,0.00027501,7]
[424920016,1781272246000,-177.50088094,0.00027501,7]
[424920015,1781272246000,-154.85699952,0.00027501,7]
[424920018,1781272246000,-219.14192279,0.00027501,7]
[424920012,1781272246000,-179.53436271,0.00027501,7]
[424920033,1781272246000,-254.73,0.0002755,2]
[424920044,1781272246000,-299.92319795,0.00027593,7]
[424920036,1781272246000,-8338.55,0.0002755,30]
[424920035,1781272246000,-10638.72,0.0002755,30]
[424920100,1781272246000,-534.65,0.00027711,7]
[424920103,1781272246000,-8338.55,0.00027711,7]
[424920101,1781272246000,-2017.73,0.00027711,7]
[424920102,1781272246000,-10638.72,0.00027711,7]
[424920093,1781272246000,-300.11,0.00027672,7]
[424920099,1781272246000,-1459.57,0.00027711,7]
[424920096,1781272246000,-254.73,0.00027702,30]
[424920098,1781272246000,-300.11,0.00027702,30]
[424920088,1781272246000,-300.11,0.00027641,2]
[424920085,1781272246000,-254.73,0.00027641,2]
[424920082,1781272246000,-300.11,0.00027611,30]
[424920079,1781272246000,-254.73,0.00027611,30]
[424920076,1781272246000,-2125.14,0.000276,30]
[424920073,1781272246000,-150.27093109,0.00027594,7]
[424920091,1781272246000,-254.73,0.00027672,7]
[424920067,1781272246000,-199.68649325,0.00027594,7]
[424920070,1781272246000,-164.48327716,0.00027594,7]
[424920038,1781272246000,-881.84,0.0002755,30]
[424920041,1781272246000,-300.11,0.0002758,7]
[424920040,1781272246000,-254.73,0.0002758,7]
[424920045,1781272246000,-188.47134687,0.00027594,7]
[424920042,1781272246000,-164.33760939,0.00027593,7]
[424920043,1781272246000,-171.39678745,0.00027593,7]
[424920039,1781272246000,-298.0,0.00027562,2]
[424920048,1781272246000,-188.83055812,0.00027594,7]
[424920060,1781272246000,-162.87760617,0.00027594,7]
[424920064,1781272246000,-165.67608578,0.00027594,7]
[424920050,1781272246000,-153.91554347,0.00027594,7]
[424920053,1781272246000,-173.79219887,0.00027594,7]
[424920057,1781272246000,-158.22280553,0.00027594,7]
[424920046,1781272246000,-175.26093033,0.00027594,7]
[424920121,1781272247000,-520.9,0.00027766,120]
[424920123,1781272247000,-254.73,0.00027794,30]
[424920124,1781272247000,-300.11,0.00027794,30]
[424920125,1781272247000,-254.73,0.00027824,2]
[424920126,1781272247000,-300.11,0.00027824,2]
[424920138,1781272247000,-254.73,0.00027916,2]
[424920127,1781272247000,-254.73,0.00027855,7]
[424920131,1781272247000,-2017.73,0.00027872,2]
[424920128,1781272247000,-300.11,0.00027855,7]
[424920132,1781272247000,-10638.72,0.00027872,2]
[424920129,1781272247000,-1459.57,0.00027872,2]
[424920133,1781272247000,-8338.55,0.00027872,2]
[424920122,1781272247000,-520.94236502,0.00027766,120]
[424920130,1781272247000,-534.65,0.00027872,2]
[424920120,1781272247000,-520.9,0.00027766,120]
[424920106,1781272247000,-300.11,0.00027733,2]
[424920115,1781272247000,-500.0,0.00027766,120]
[424920119,1781272247000,-520.9,0.00027766,120]
[424920117,1781272247000,-188.13,0.00027766,120]
[424920118,1781272247000,-520.9,0.00027766,120]
[424920114,1781272247000,-500.0,0.00027766,120]
[424920111,1781272247000,-669.46,0.00027766,120]
[424920113,1781272247000,-669.58,0.00027766,120]
[424920109,1781272247000,-669.46,0.00027766,120]
[424920110,1781272247000,-669.46,0.00027766,120]
[424920112,1781272247000,-669.46,0.00027766,120]
[424920108,1781272247000,-300.11,0.00027763,7]
[424920107,1781272247000,-254.73,0.00027763,7]
[424920105,1781272247000,-254.73,0.00027733,2]
[424920104,1781272247000,-881.84,0.00027711,7]
[424920116,1781272247000,-500.0,0.00027766,120]
[424920137,1781272247000,-37550.44576352,0.00027907,2]
[424920146,1781272247000,-6495.0,0.00027999,10]
[424920136,1781272247000,-300.11,0.00027885,30]
[424920135,1781272247000,-254.73,0.00027885,30]
[424920169,1781272247000,-534.65,0.00028194,7]
[424920168,1781272247000,-1459.57,0.00028194,7]
[424920167,1781272247000,-300.17,0.0002813,7]
[424920166,1781272247000,-254.78,0.0002813,7]
[424920165,1781272247000,-180.15,0.000281,7]
[424920163,1781272247000,-254.73,0.00028099,2]
[424920164,1781272247000,-300.11,0.00028099,2]
[424920161,1781272247000,-382.0,0.00028093,2]
[424920160,1781272247000,-1358.0,0.00028093,2]
[424920157,1781272247000,-300.11,0.00028038,7]
[424920158,1781272247000,-254.73,0.00028068,30]
[424920156,1781272247000,-254.73,0.00028038,7]
[424920153,1781272247000,-10638.72,0.00028033,30]
[424920159,1781272247000,-300.11,0.00028068,30]
[424920162,1781272247000,-1227.0,0.00028093,2]
[424920154,1781272247000,-8338.55,0.00028033,30]
[424920134,1781272247000,-881.84,0.00027872,2]
[424920155,1781272247000,-881.84,0.00028033,30]
[424920139,1781272247000,-300.11,0.00027916,2]
[424920140,1781272247000,-254.73,0.00027946,7]
[424920141,1781272247000,-300.11,0.00027946,7]
[424920142,1781272247000,-425.00166298,0.00027948,2]
[424920145,1781272247000,-300.11,0.00027977,30]
[424920144,1781272247000,-254.73,0.00027977,30]
[424920147,1781272247000,-359.07,0.00028,7]
[424920148,1781272247000,-254.73,0.00028007,2]
[424920149,1781272247000,-300.11,0.00028007,2]
[424920152,1781272247000,-2017.73,0.00028033,30]
[424920150,1781272247000,-1459.57,0.00028033,30]
[424920143,1781272247000,-150.0,0.00027973,2]
[424920151,1781272247000,-534.65,0.00028033,30]
[424920202,1781272248000,-301.01269551,0.00028793,7]
[424920201,1781272248000,-375.58493599,0.00028793,7]
[424920200,1781272248000,-312.1006096,0.00028793,7]
[424920199,1781272248000,-314.92981986,0.00028793,7]
[424920197,1781272248000,-227.55050319,0.00028793,7]
[424920193,1781272248000,-398.0,0.00028764,2]
[424920203,1781272248000,-334.18150279,0.00028793,7]
[424920196,1781272248000,-217.90399616,0.00028767,2]
[424920198,1781272248000,-199.55618855,0.00028793,7]
[424920207,1781272248000,-230.48072189,0.00028793,7]
[424920208,1781272248000,-225.34558847,0.00028793,7]
[424920206,1781272248000,-303.01708437,0.00028793,7]
[424920205,1781272248000,-310.25457229,0.00028793,2]
[424920209,1781272248000,-345.13113739,0.00028793,7]
[424920210,1781272248000,-301.77402988,0.00028799,7]
[424920211,1781272248000,-171.2824986,0.00028799,7]
[424920212,1781272248000,-354.26272815,0.00028799,7]
[424920215,1781272248000,-351.38674111,0.00028799,7]
[424920214,1781272248000,-246.96180212,0.00028799,5]
[424920194,1781272248000,-2287.0,0.00028764,2]
[424920204,1781272248000,-312.04353185,0.00028793,7]
[424920191,1781272248000,-3780.29927002,0.000287,2]
[424920175,1781272248000,-505.0,0.00028333,11]
[424920190,1781272248000,-3780.29927002,0.000287,2]
[424920170,1781272248000,-2017.73,0.00028194,7]
[424920171,1781272248000,-10638.72,0.00028194,7]
[424920177,1781272248000,-8338.55,0.00028355,2]
[424920174,1781272248000,-1215.0,0.00028267,2]
[424920176,1781272248000,-10638.72,0.00028355,2]
[424920172,1781272248000,-8338.55,0.00028194,7]
[424920173,1781272248000,-881.84,0.00028194,7]
[424920216,1781272248000,-194.78574513,0.00028799,7]
[424920180,1781272248000,-10638.72,0.00028516,30]
[424920195,1781272248000,-500.0,0.00028767,2]
[424920181,1781272248000,-8338.55,0.00028516,30]
[424920187,1781272248000,-208.74819166,0.000287,2]
[424920186,1781272248000,-208.74819168,0.000287,2]
[424920185,1781272248000,-363.58735544,0.000287,2]
[424920178,1781272248000,-168.44,0.00028493,2]
[424920184,1781272248000,-363.58735544,0.000287,2]
[424920183,1781272248000,-363.58735547,0.000287,2]
[424920189,1781272248000,-3780.29927003,0.000287,2]
[424920188,1781272248000,-208.74819166,0.000287,2]
[424920192,1781272248000,-2244.0,0.00028764,2]
[424920182,1781272248000,-431.64839135,0.00028545,2]
[424920213,1781272248000,-220.51711721,0.00028799,7]
[424920179,1781272248000,-6072.53,0.00028516,30]
[424920217,1781272248000,-168.57577832,0.00028799,7]
[424920242,1781272248000,-320.81258203,0.00028799,7]
[424920244,1781272248000,-314.63339531,0.00028799,7]
[424920247,1781272248000,-210.23472038,0.00028799,7]
[424920245,1781272248000,-308.42929598,0.00028799,7]
[424920243,1781272248000,-412.83188314,0.00028799,7]
[424920246,1781272248000,-172.79418527,0.00028799,7]
[424920250,1781272248000,-2000.0,0.00028826,2]
[424920257,1781272248000,-2000.0,0.00028826,2]
[424920251,1781272248000,-2000.0,0.00028826,2]
[424920255,1781272248000,-2000.0,0.00028826,2]
[424920252,1781272248000,-1400.0,0.00028826,2]
[424920218,1781272248000,-484.44387744,0.00028799,7]
[424920254,1781272248000,-2000.0,0.00028826,2]
[424920259,1781272248000,-2000.0,0.00028826,2]
[424920256,1781272248000,-2000.0,0.00028826,2]
[424920260,1781272248000,-2000.0,0.00028826,2]
[424920258,1781272248000,-2000.0,0.00028826,2]
[424920262,1781272248000,-2000.0,0.00028826,2]
[424920261,1781272248000,-2000.0,0.00028826,2]
[424920263,1781272248000,-2000.0,0.00028826,2]
[424920264,1781272248000,-1130.06,0.00028826,2]
[424920241,1781272248000,-307.46547284,0.00028799,7]
[424920240,1781272248000,-308.31578072,0.00028799,7]
[424920253,1781272248000,-1696.5,0.00028826,2]
[424920248,1781272248000,-356.23469977,0.00028803,7]
[424920249,1781272248000,-300.50685437,0.00028803,7]
[424920219,1781272248000,-211.66780893,0.00028799,7]
[424920226,1781272248000,-226.34276476,0.00028799,7]
[424920221,1781272248000,-205.40958195,0.00028799,7]
[424920225,1781272248000,-318.25803954,0.00028799,5]
[424920222,1781272248000,-248.21960329,0.00028799,7]
[424920227,1781272248000,-241.38122444,0.00028799,7]
[424920224,1781272248000,-349.62536133,0.00028799,7]
[424920223,1781272248000,-569.53757302,0.00028799,7]
[424920228,1781272248000,-390.38772832,0.00028799,7]
[424920220,1781272248000,-353.8056872,0.00028799,7]
[424920231,1781272248000,-173.69094567,0.00028799,7]
[424920230,1781272248000,-414.34311583,0.00028799,7]
[424920233,1781272248000,-309.71399903,0.00028799,7]
[424920234,1781272248000,-355.00176187,0.00028799,7]
[424920232,1781272248000,-316.87860274,0.00028799,7]
[424920235,1781272248000,-368.68439396,0.00028799,7]
[424920236,1781272248000,-438.28384557,0.00028799,7]
[424920238,1781272248000,-404.66349918,0.00028799,7]
[424920237,1781272248000,-312.35369378,0.00028799,7]
[424920229,1781272248000,-359.06872542,0.00028799,7]
[424920239,1781272248000,-405.81853451,0.00028799,7]
[424920282,1781272249000,-2000.0,0.00028826,2]
[424920280,1781272249000,-2000.0,0.00028826,2]
[424920283,1781272249000,-2000.0,0.00028826,2]
[424920285,1781272249000,-2000.0,0.00028826,2]
[424920284,1781272249000,-2000.0,0.00028826,2]
[424920288,1781272249000,-2000.0,0.00028826,2]
[424920286,1781272249000,-2000.0,0.00028826,2]
[424920290,1781272249000,-2000.0,0.00028826,2]
[424920289,1781272249000,-2000.0,0.00028826,2]
[424920291,1781272249000,-1021.54,0.00028826,2]
[424920281,1781272249000,-2000.0,0.00028826,2]
[424920287,1781272249000,-2000.0,0.00028826,2]
[424920278,1781272249000,-619.53,0.00028826,2]
[424920268,1781272249000,-2000.0,0.00028826,2]
[424920275,1781272249000,-3000.0,0.00028826,2]
[424920279,1781272249000,-2000.0,0.00028826,2]
[424920276,1781272249000,-3000.0,0.00028826,2]
[424920273,1781272249000,-189.49,0.00028826,2]
[424920274,1781272249000,-3000.0,0.00028826,2]
[424920271,1781272249000,-2000.0,0.00028826,2]
[424920272,1781272249000,-2000.0,0.00028826,2]
[424920270,1781272249000,-2000.0,0.00028826,2]
[424920269,1781272249000,-2000.0,0.00028826,2]
[424920267,1781272249000,-2000.0,0.00028826,2]
[424920266,1781272249000,-2000.0,0.00028826,2]
[424920265,1781272249000,-2000.0,0.00028826,2]
[424920277,1781272249000,-3000.0,0.00028826,2]
[424920292,1781272249000,-500.0,0.00028855,2]
[424920293,1781272249000,-150.0,0.00028855,2]
[424920294,1781272249000,-150.0,0.00028855,2]
[424920295,1781272249000,-328.67521879,0.00028895,7]
[424920323,1781272249000,-500.0,0.00029,2]
[424920322,1781272249000,-250.0,0.00029,2]
[424920321,1781272249000,-2000.0,0.00029,2]
[424920317,1781272249000,-200.0,0.00029,2]
[424920320,1781272249000,-500.0,0.00029,2]
[424920318,1781272249000,-200.0,0.00029,2]
[424920316,1781272249000,-1578.33,0.00029,2]
[424920314,1781272249000,-300.0,0.000289,10]
[424920315,1781272249000,-191.49836452,0.000289,2]
[424920312,1781272249000,-180.15,0.000289,7]
[424920313,1781272249000,-428.0,0.000289,2]
[424920311,1781272249000,-300.54186219,0.00028895,7]
[424920310,1781272249000,-328.96655432,0.00028895,7]
[424920319,1781272249000,-10000.0,0.00029,2]
[424920307,1781272249000,-155.35127591,0.00028895,2]
[424920309,1781272249000,-399.37298651,0.00028895,7]
[424920297,1781272249000,-599.84639591,0.00028895,7]
[424920299,1781272249000,-350.52186067,0.00028895,7]
[424920298,1781272249000,-376.94269374,0.00028895,7]
[424920296,1781272249000,-342.7935749,0.00028895,7]
[424920301,1781272249000,-307.83108694,0.00028895,7]
[424920300,1781272249000,-377.66111624,0.00028895,7]
[424920304,1781272249000,-316.44561106,0.00028895,7]
[424920303,1781272249000,-220.56422307,0.00028895,7]
[424920305,1781272249000,-325.75521234,0.00028895,7]
[424920306,1781272249000,-331.35217156,0.00028895,7]
[424920302,1781272249000,-347.58439773,0.00028895,7]
[424920308,1781272249000,-208.45631146,0.00028895,7]
[424920356,1781272250000,-500.0,0.00029,2]
[424920363,1781272250000,-500.0,0.00029,2]
[424920357,1781272250000,-500.0,0.00029,2]
[424920358,1781272250000,-500.0,0.00029,2]
[424920364,1781272250000,-500.0,0.00029,2]
[424920355,1781272250000,-500.0,0.00029,2]
[424920349,1781272250000,-500.0,0.00029,2]
[424920350,1781272250000,-500.0,0.00029,2]
[424920344,1781272250000,-500.0,0.00029,2]
[424920354,1781272250000,-500.0,0.00029,2]
[424920362,1781272250000,-500.0,0.00029,2]
[424920372,1781272250000,-330.03,0.00029,2]
[424920360,1781272250000,-500.0,0.00029,2]
[424920361,1781272250000,-500.0,0.00029,2]
[424920367,1781272250000,-500.0,0.00029,2]
[424920365,1781272250000,-500.0,0.00029,2]
[424920368,1781272250000,-500.0,0.00029,2]
[424920375,1781272250000,-160.81,0.00029,2]
[424920366,1781272250000,-500.0,0.00029,2]
[424920371,1781272250000,-500.0,0.00029,2]
[424920369,1781272250000,-500.0,0.00029,2]
[424920347,1781272250000,-500.0,0.00029,2]
[424920359,1781272250000,-500.0,0.00029,2]
[424920351,1781272250000,-500.0,0.00029,2]
[424920334,1781272250000,-200.0,0.00029,2]
[424920345,1781272250000,-500.0,0.00029,2]
[424920324,1781272250000,-706.88,0.00029,2]
[424920326,1781272250000,-200.0,0.00029,2]
[424920325,1781272250000,-500.0,0.00029,2]
[424920373,1781272250000,-160.81,0.00029,2]
[424920327,1781272250000,-200.0,0.00029,2]
[424920329,1781272250000,-200.0,0.00029,2]
[424920331,1781272250000,-200.0,0.00029,2]
[424920330,1781272250000,-200.0,0.00029,2]
[424920333,1781272250000,-200.0,0.00029,2]
[424920332,1781272250000,-200.0,0.00029,2]
[424920353,1781272250000,-500.0,0.00029,2]
[424920335,1781272250000,-200.0,0.00029,2]
[424920337,1781272250000,-200.0,0.00029,2]
[424920336,1781272250000,-200.0,0.00029,2]
[424920339,1781272250000,-200.0,0.00029,2]
[424920338,1781272250000,-200.0,0.00029,2]
[424920341,1781272250000,-217.22,0.00029,2]
[424920342,1781272250000,-500.0,0.00029,2]
[424920346,1781272250000,-500.0,0.00029,2]
[424920348,1781272250000,-500.0,0.00029,2]
[424920343,1781272250000,-500.0,0.00029,2]
[424920352,1781272250000,-500.0,0.00029,2]
[424920340,1781272250000,-200.0,0.00029,2]
[424920370,1781272250000,-500.0,0.00029,2]
[424920328,1781272250000,-200.0,0.00029,2]
[424920374,1781272250000,-160.81,0.00029,2]
[424920404,1781272250000,-831.41,0.00029,2]
[424920402,1781272250000,-500.0,0.00029,2]
[424920403,1781272250000,-10000.0,0.00029,2]
[424920411,1781272250000,-500.0,0.00029,2]
[424920405,1781272250000,-2000.0,0.00029,2]
[424920410,1781272250000,-425.64,0.00029,2]
[424920409,1781272250000,-2000.0,0.00029,2]
[424920408,1781272250000,-2000.0,0.00029,2]
[424920412,1781272250000,-794.067464,0.00029,7]
[424920414,1781272250000,-794.067464,0.00029,7]
[424920406,1781272250000,-2000.0,0.00029,2]
[424920413,1781272250000,-794.067464,0.00029,7]
[424920418,1781272250000,-152.0,0.00029,2]
[424920420,1781272250000,-322.33,0.000291,7]
[424920423,1781272250000,-341.27322302,0.00029164,2]
[424920417,1781272250000,-234.844936,0.00029,7]
[424920422,1781272250000,-601.17,0.000291,2]
[424920416,1781272250000,-151.0,0.00029,7]
[424920421,1781272250000,-403.75,0.000291,2]
[424920419,1781272250000,-601.17,0.000291,2]
[424920425,1781272250000,-304.0,0.00029227,30]
[424920424,1781272250000,-357.0,0.00029227,30]
[424920415,1781272250000,-794.067464,0.00029,7]
[424920407,1781272250000,-2000.0,0.00029,2]
[424920376,1781272250000,-160.81,0.00029,2]
[424920401,1781272250000,-252.68,0.00029,5]
[424920378,1781272250000,-160.81,0.00029,2]
[424920379,1781272250000,-160.81,0.00029,2]
[424920377,1781272250000,-160.81,0.00029,2]
[424920382,1781272250000,-160.81,0.00029,2]
[424920383,1781272250000,-160.81,0.00029,2]
[424920380,1781272250000,-160.81,0.00029,2]
[424920381,1781272250000,-160.81,0.00029,2]
[424920387,1781272250000,-2000.0,0.00029,2]
[424920385,1781272250000,-500.0,0.00029,2]
[424920386,1781272250000,-2000.0,0.00029,2]
[424920384,1781272250000,-10000.0,0.00029,2]
[424920400,1781272250000,-2258.14,0.00029,2]
[424920389,1781272250000,-2000.0,0.00029,2]
[424920395,1781272250000,-2000.0,0.00029,2]
[424920396,1781272250000,-2000.0,0.00029,2]
[424920392,1781272250000,-227.5087134,0.00029,2]
[424920399,1781272250000,-3000.0,0.00029,2]
[424920391,1781272250000,-166.52646089,0.00029,2]
[424920398,1781272250000,-745.62,0.00029,2]
[424920397,1781272250000,-2000.0,0.00029,2]
[424920390,1781272250000,-804.19,0.00029,2]
[424920393,1781272250000,-500.0,0.00029,2]
[424920394,1781272250000,-500.0,0.00029,2]
[424920388,1781272250000,-2000.0,0.00029,2]
[424920458,1781272251000,-215.18790082,0.00029658,2]
[424920457,1781272251000,-460.96144379,0.00029658,7]
[424920459,1781272251000,-290.66668739,0.00029658,7]
[424920460,1781272251000,-284.18254028,0.00029658,7]
[424920454,1781272251000,-229.20662537,0.00029658,7]
[424920461,1781272251000,-450.69117695,0.00029658,7]
[424920455,1781272251000,-239.49646641,0.00029658,7]
[424920453,1781272251000,-281.49749475,0.00029658,2]
[424920463,1781272251000,-452.66104482,0.00029664,7]
[424920456,1781272251000,-283.48713664,0.00029658,7]
[424920462,1781272251000,-517.69670608,0.00029658,7]
[424920465,1781272251000,-531.39409223,0.00029664,7]
[424920466,1781272251000,-441.03423443,0.00029664,7]
[424920469,1781272251000,-389.57149027,0.00029664,7]
[424920468,1781272251000,-527.08011166,0.00029664,7]
[424920471,1781272251000,-726.66581617,0.00029664,7]
[424920472,1781272251000,-530.7085308,0.00029664,7]
[424920467,1781272251000,-493.92360425,0.00029664,5]
[424920470,1781272251000,-337.15155664,0.00029664,7]
[424920473,1781272251000,-410.8191639,0.00029664,7]
[424920474,1781272251000,-496.43920658,0.00029664,7]
[424920449,1781272251000,-468.06529777,0.00029658,7]
[424920464,1781272251000,-342.56499721,0.00029664,7]
[424920451,1781272251000,-465.38185844,0.00029658,2]
[424920434,1781272251000,-1852.0,0.00029232,30]
[424920450,1781272251000,-226.49538561,0.00029658,7]
[424920426,1781272251000,-177.0,0.00029227,30]
[424920427,1781272251000,-936.0,0.00029227,30]
[424920431,1781272251000,-809.0,0.0002923,30]
[424920430,1781272251000,-244.0,0.0002923,30]
[424920428,1781272251000,-2212.0,0.0002923,30]
[424920432,1781272251000,-329.0,0.0002923,30]
[424920429,1781272251000,-398.0,0.0002923,30]
[424920433,1781272251000,-178.0,0.00029232,30]
[424920435,1781272251000,-8660.0,0.00029345,10]
[424920438,1781272251000,-204.0,0.00029425,2]
[424920436,1781272251000,-505.0,0.00029367,12]
[424920439,1781272251000,-287.76559423,0.00029545,7]
[424920478,1781272251000,-452.68552951,0.00029664,7]
[424920437,1781272251000,-150.0,0.00029372,2]
[424920442,1781272251000,-472.39472979,0.00029658,7]
[424920440,1781272251000,-232.3609717,0.00029658,7]
[424920441,1781272251000,-455.10100637,0.00029658,7]
[424920444,1781272251000,-468.1509144,0.00029658,7]
[424920443,1781272251000,-399.1123771,0.00029658,7]
[424920445,1781272251000,-563.37740399,0.00029658,7]
[424920448,1781272251000,-174.88966905,0.00029658,7]
[424920446,1781272251000,-451.51904327,0.00029658,7]
[424920447,1781272251000,-501.27225418,0.00029658,7]
[424920452,1781272251000,-454.52562656,0.00029658,7]
[424920477,1781272251000,-477.38705931,0.00029664,5]
[424920475,1781272251000,-854.30635953,0.00029664,7]
[424920482,1781272251000,-621.51467375,0.00029664,7]
[424920515,1781272251000,-566.49167436,0.00029763,7]
[424920505,1781272251000,-450.76028155,0.00029669,7]
[424920506,1781272251000,-252.68,0.000297,4]
[424920507,1781272251000,-1500.0,0.00029748,7]
[424920508,1781272251000,-165.2776944,0.00029762,7]
[424920510,1781272251000,-899.76959386,0.00029762,7]
[424920479,1781272251000,-482.76244887,0.00029664,7]
[424920513,1781272251000,-225.74352431,0.00029763,7]